{"text_format":"1","workbook":"xlsx","n_sheets":4,"sheets":["Titelblad","Toelichting","Projectgegevens","Invulblad"],"not_rendered":{"charts":1,"images":5,"macros":1,"external_links":0,"defined_names":1,"comments":0,"pivot_tables":0},"unopened":[],"bounds":{"document_bytes":16777216,"sheet_cells":100000,"rows_first":2000,"rows_last":500,"rows_between":2000,"halvings":0,"cell_chars":16384,"cell_head_chars":4096},"cells_cut":0,"cells_raw":0,"read":"whole","date_system":"1900"}

{"sheet":"Titelblad","index":0,"n_rows":0,"n_cols":0,"rows_kept":0,"cut":false,"hidden":false,"merged":[]}

{"sheet":"Toelichting","index":1,"n_rows":17,"n_cols":2,"rows_kept":17,"cut":false,"hidden":false,"merged":[]}
[null,"Ambitieweb"]
[null,"Wat is het Ambitieweb?"]
[null,"Het Ambitieweb is een krachtige visualisatietool, dat in één oogopslag de duurzaamheidsambities laat zien. Een tool waarmee in een groepsproces een gezamenlijk beeld van duurzaamheid én draagvlak voor mogelijke maatregelen ontstaat."]
[null,"Hoe gebruikt u deze tool?"]
[null,"Deze tool kent verschillende tabbladen met naar de inhoud verwijzende titels. Op het invulblad vindt u bovenin een instructiebalk met daarin drie stappen. Middels deze stappen kunt u thema's (de)selecteren, ambities scoren en het Ambitieweb aanpassen. Meer over het gebruiken van het Ambitieweb is te lezen op de website van PIANOo:"]
[null,"Handreiking Ambitieweb."]
[]
[]
[]
[null,"Het Ambitieweb kent vier ambitieniveaus, welke zijn dat?"]
[null,"0. Geen duurzaamheidsambities of niet relevant. "]
[null,"1. Basis: Uitsluiten van niet-duurzame producten, diensten en werken."]
[null,"2. Significant: Aanmoedigen van duurzame producten, diensten en werken om significante duurzaamheidswinst te maken."]
[null,"3. Ambitieus: (Zoveel mogelijk) beperken van negatieve effecten of leveren van een positieve bijdrage op het thema. Waar nodig door stimuleren van nieuwe oplossingen en innovatie."]
[]
[null,"Kan ik het Ambitieweb ook afdrukken?"]
[null,"Op het invulblad zit in de instructiebalk ook een knop om een PDF te maken welke automatisch op je bureaublad wordt opgeslagen. Ook kunt u met de muisfuncties de afbeelding printen of kopieren en plakken in elke willekeurige applicatie (zoals Word of Powerpoint)."]

{"sheet":"Projectgegevens","index":2,"n_rows":12,"n_cols":7,"rows_kept":12,"cut":false,"hidden":false,"merged":[]}
[null,"Projectgegevens"]
[]
[null,"Gegegevens "]
[null,"Naam organisatie(onderdeel) :",null,null,"Legenda"]
[null,"Projecttitel :",null,null,null,null,"Zelf in te vullen cellen"]
[null,"Contactpersoon :",null,null,null,null,"Optioneel in te vullen"]
[null,"Telefoonnummer :"]
[null,"E-mail :"]
[]
[null,"Datum van Ambitiewebsessie :"]
[]
[null,"Opmerkingen"]

{"sheet":"Invulblad","index":3,"n_rows":16,"n_cols":6,"rows_kept":16,"cut":false,"hidden":false,"merged":[]}
[]
[null,null,"Hoe gebruikt u het ambitieweb?"]
[]
[null,"Nr","Thema's","Toelichting","Gewenste ambitie","0 = Geen ambitie\n1 = Basis \n2 = Significant\n3 = Ambitieus"]
[null,1,"Klimaat","Dit thema gaat over voorkomen van een negatieve impact op klimaat of over het leveren van een positieve bijdrage. ",2,{"$f":"IF(E5=0,\"geen duurzaamheidsambitie\",IF(E5=1,\"Basis\",IF(E5=2,\"Significant\",IF(E5=3,\"Ambitieus\",\"vul links het getal 0, 1, 2 of 3 in\"))))","v":"Significant"}]
[null,{"$f":"B5+1","v":2},"Circulair","Het gaat binnen dit thema om; materialen en grondstoffen, hoogwaardig hergebruik en biobased materiaalgebruik. ",1,"Basis"]
[null,{"$f":"B6+1","v":3},"Milieu","Dit thema gaat over voorkomen van een negatieve impact op Milieu of over het leveren van een positieve bijdrage. ",3,"Ambitieus"]
[null,4,"Ketenverantwoordelijkheid","Dit thema richt zich op het bevorderen van de internationale arbeidsnormen (tegen gaan van dwangarbeid, kinderarbeid en discriminatie).",2,"Significant"]
[null,5,"Diversiteit en Inclusie","Dit thema gaat over het bevorderen van diversiteit en inclusie.",1,"Basis"]
[null,6,"Social Return","Bij social return gaat het over arbeidsparticipatie en sociaal ondernemerschap.",3,{"$f":"IF(E10=0,\"geen duurzaamheidsambitie\",IF(E10=1,\"Basis\",IF(E10=2,\"Significant\",IF(E10=3,\"Ambitieus\",\"vul links het getal 0, 1, 2 of 3 in\"))))","v":"Ambitieus"}]
[null,7,"< aanvullend thema >"," ","< score >","vul links het getal 0, 1, 2 of 3 in"]
[null,8,"< aanvullend thema >"," ","< score >","vul links het getal 0, 1, 2 of 3 in"]
[null,9,"< aanvullend thema >"," ","< score >","vul links het getal 0, 1, 2 of 3 in"]
[null,{"$f":"B13+1","v":10},"< aanvullend thema >"," ","< score >","vul links het getal 0, 1, 2 of 3 in"]
[null,11,"< aanvullend thema >"," ","< score >","vul links het getal 0, 1, 2 of 3 in"]
[null,12,"< aanvullend thema >"," ","< score >","vul links het getal 0, 1, 2 of 3 in"]